[Event "58th Akiba Rubinstein D 2022"]
[Site "Polanica-Zdroj"]
[Date "2022.08.14"]
[Round "2.14"]
[White "Balcerzak, Robert"]
[Black "Wilgosz, Jan"]
[Result "0-1"]
[ECO "C44"]
[WhiteElo "1357"]
[BlackElo "1597"]
[Annotator "NA RC"]
[PlyCount "56"]
[EventDate "2022.08.13"]
[EventCountry "POL"]
[SourceTitle "playchess.com"]
[Source "ChessBase"]
[SourceQuality "1"]
[TimeControl "40/5400+30:1800+30"]

1. e4 {[%emt 0:04:13]} e5 {[%emt 0:00:38]} 2. d4 {[%emt 0:00:29]} exd4 {[%emt 0:00:08]} 3. Nf3 {[%emt 0:00:31]} Nc6 {[%emt 0:00:13]} 4. c3 {[%emt 0:00:34]} Nge7 {[%emt 0:00:45]} 5. cxd4 {[%emt 0:02:22]} d5 {[%emt 0:00:17]} 6. e5 {[%emt 0:04:48]} Bg4 {[%emt 0:00:43]} 7. Nbd2 {[%emt 0:09:54]} Nf5 {[%emt 0:04:12]} 8. h3 {[%emt 0:03:27]} Bxf3 {[%emt 0:05:32]} 9. Nxf3 {[%emt 0:00:08]} Bb4+ {[%emt 0:07:41]} 10. Bd2 {[%emt 0:01:19]} Bxd2+ {[%emt 0:06:17]} 11. Qxd2 {[%emt 0:00:28]} Nh4 {[%emt 0:08:01]} 12. Nxh4 {[%emt 0:16:34]} Qxh4 {[%emt 0:00:07]} 13. Bb5 {[%emt 0:00:06]} Qe4+ {[%emt 0:02:44]} 14. Kf1 {[%emt 0:01:17]} O-O {[%emt 0:06:47]} 15. Bxc6 {[%emt 0:00:56]} bxc6 {[%emt 0:00:02]} 16. Re1 {[%emt 0:07:56]} Qg6 {[%emt 0:03:26]} 17. Rc1 {[%emt 0:03:06]} Rab8 {[%emt 0:05:04]} 18. Qc2 {[%emt 0:03:23]} Qh5 {[%emt 0:02:35]} 19. b3 {[%emt 0:03:05]} Rb6 {[%emt 0:05:34]} 20. Qc3 {[%emt 0:09:38]} Qf5 {[%emt 0:05:26]} 21. Qf3 {[%emt 0:04:44]} Qe6 {[%emt 0:02:59]} 22. Qg4 {[%emt 0:01:31]} Qe7 {[%emt 0:02:45]} 23. Rc5 {[%emt 0:04:10]} f6 {[%emt 0:02:53]} 24. Qh4 {[%emt 0:03:09]} Qe8 {[%emt 0:02:25]} 25. f4 {[%emt 0:02:34]} fxe5 {[%emt 0:01:44]} 26. dxe5 {[%emt 0:00:30]} Qxe5 {[%emt 0:00:55]} 27. Qe1 {[%emt 0:01:57]} Rxf4+ {[%emt 0:00:45]} 28. Kg1 {[%emt 0:00:25]} Qxe1+ {[%emt 0:00:12]} 0-1

[Event "58th Akiba Rubinstein D 2022"]
[Site "Polanica-Zdroj"]
[Date "2022.08.14"]
[Round "2.15"]
[White "Wolska, Marta"]
[Black "Pelczarski, Wojciech"]
[Result "1-0"]
[ECO "D43"]
[WhiteElo "1588"]
[BlackElo "1155"]
[Annotator "NA RC"]
[PlyCount "75"]
[EventDate "2022.08.13"]
[EventCountry "POL"]
[SourceTitle "playchess.com"]
[Source "ChessBase"]
[SourceQuality "1"]
[TimeControl "40/5400+30:1800+30"]

1. d4 {[%emt 0:00:02]} d5 {[%emt 0:00:05]} 2. c4 {[%emt 0:00:05]} e6 {[%emt 0:00:05]} 3. Nc3 {[%emt 0:00:05]} Nf6 {[%emt 0:00:16]} 4. Nf3 {[%emt 0:00:35]} c6 {[%emt 0:00:20]} 5. g3 {[%emt 0:01:40]} Nbd7 {[%emt 0:00:15]} 6. Bg2 {[%emt 0:00:09]} Be7 {[%emt 0:00:26]} 7. O-O {[%emt 0:00:09]} O-O {[%emt 0:00:07]} 8. Nd2 {[%emt 0:05:45]} h6 {[%emt 0:00:35]} 9. Qc2 {[%emt 0:17:16]} Nb6 {[%emt 0:00:50]} 10. b3 {[%emt 0:06:15]} dxc4 {[%emt 0:01:11]} 11. Rd1 {[%emt 0:04:27]} cxb3 {[%emt 0:00:09]} 12. Nxb3 {[%emt 0:00:29]} Nbd5 {[%emt 0:00:18]} 13. e4 {[%emt 0:01:07]} Nxc3 {[%emt 0:00:31]} 14. Qxc3 {[%emt 0:00:02]} Bd7 {[%emt 0:00:17]} 15. Rb1 {[%emt 0:03:43]} Rc8 {[%emt 0:00:25]} 16. Nc5 {[%emt 0:03:14]} b6 {[%emt 0:00:45]} 17. Nb3 {[%emt 0:01:20]} c5 {[%emt 0:00:28]} 18. dxc5 {[%emt 0:01:18]} Bxc5 {[%emt 0:00:20]} 19. Nxc5 {[%emt 0:04:33]} Rxc5 {[%emt 0:00:18]} 20. Qe1 {[%emt 0:01:23]} Ra5 {[%emt 0:00:18]} 21. Rb2 {[%emt 0:02:30]} Qe7 {[%emt 0:00:23]} 22. Bd2 {[%emt 0:00:38]} Ra4 {[%emt 0:00:28]} 23. Bb4 {[%emt 0:01:20]} Qe8 {[%emt 0:01:39]} 24. Bxf8 {[%emt 0:01:49]} Qxf8 {[%emt 0:00:07]} 25. Rbd2 {[%emt 0:02:27]} Qb4 {[%emt 0:01:30]} 26. Qe3 {[%emt 0:03:25]} Bc6 {[%emt 0:03:41]} 27. Rd4 {[%emt 0:01:30]} Qb2 {[%emt 0:01:43]} 28. Rxa4 {[%emt 0:01:34]} Bxa4 {[%emt 0:00:09]} 29. Qd4 {[%emt 0:02:31]} Qe2 {[%emt 0:01:29]} 30. Qxa4 {[%emt 0:00:26]} Ng4 {[%emt 0:00:40]} 31. Rf1 {[%emt 0:00:42]} a5 {[%emt 0:01:33]} 32. Qe8+ {[%emt 0:00:08]} Kh7 {[%emt 0:00:10]} 33. Qxf7 {[%emt 0:00:10]} Nf6 {[%emt 0:00:12]} 34. Qxe6 {[%emt 0:00:16]} b5 {[%emt 0:00:24]} 35. Qf5+ {[%emt 0:00:27]} Kg8 {[%emt 0:00:30]} 36. e5 {[%emt 0:00:09]} Nh5 {[%emt 0:00:29]} 37. Bd5+ {[%emt 0:01:37]} Kh8 {[%emt 0:00:35]} 38. Rc1 {[%emt 0:01:31]} 1-0

[Event "58th Akiba Rubinstein D 2022"]
[Site "Polanica-Zdroj"]
[Date "2022.08.14"]
[Round "2.19"]
[White "Dysko, Michal"]
[Black "Meizlin, Yaacov"]
[Result "0-1"]
[ECO "D08"]
[WhiteElo "1376"]
[BlackElo "1938"]
[Annotator "TA"]
[PlyCount "26"]
[EventDate "2022.08.13"]
[EventCountry "POL"]
[SourceTitle "playchess.com"]
[Source "ChessBase"]
[SourceQuality "1"]
[TimeControl "40/5400+30:1800+30"]

{[%evp 9,26,-20,-28,-119,-123,-118,-134,-97,-135,-602,-600,-1220,-419,-1212,-1150,-29997,-29998,-29998,-29999]} 1. d4 {[%emt 0:00:07]} d5 {[%emt 0:00:22][%cal Bd7d5,Bd5d4][%mdl 32]} 2. c4 {[%emt 0:00:11]} e5 {[%emt 0:00:23]} 3. dxe5 {[%emt 0:00:17]} d4 {[%emt 0:00:09]} 4. e3 {[%emt 0:02:47]} Bb4+ {[%emt 0:00:23]} 5. Bd2 {[%emt 0:00:56]} dxe3 $1 {[%emt 0:02:55][%mdl 64] Pin} 6. Qa4+ {[%emt 0:07:21] [#] D08: Albin Counter Gambit.} ({Avoid the trap} 6. Bxb4 $2 exf2+ 7. Ke2 fxg1=N+ 8. Ke1 Qh4+ 9. Kd2 Nc6 $19) (6. fxe3 $11 {keeps the balance.} Qh4+ 7. g3) 6... Nc6 $1 $17 {[%emt 0:05:16] Black is more active.} 7. Bxb4 {[%emt 0:02:04] And now Bc5 would win.} exf2+ {[%emt 0:00:19]} 8. Kxf2 {[%emt 0:00:23] aiming for Nf3. Black is clearly better.} Qh4+ {[%emt 0:08:27]} 9. Ke3 $4 {[%emt 0:11:14][%mdl 8192]} (9. g3 $17 Qd4+ 10. Ke1 Qe4+ 11. Kf2 Qxh1 12. h3) 9... Qd4+ $19 {[%emt 0:10:39]} 10. Kf3 {[%emt 0:00:01]} Bg4+ {[%emt 0:12:43]} 11. Kg3 {[%emt 0:00:01]} Nh6 {[%emt 0:00:31][%cal Rh6f5] [#]} 12. h3 $146 {[%emt 0:02:07]} ({Predecessor:} 12. Bd3 Qxd3+ 13. Nf3 Bxf3 14. gxf3 Nf5+ 15. Kf2 Qe3+ {0-1 (15) Brown,R (1761)-Moore,H (2205) Victoria 2017}) 12... Nf5+ {[%emt 0:00:12]} 13. Kh2 {[%emt 0:00:11]} Qf4+ {[%emt 0:00:02] White got outplayed after the opening.  Weighted Error Value: White=3.12/Black=0.00 (flawless)} 0-1

[Event "58th Akiba Rubinstein D 2022"]
[Site "Polanica-Zdroj"]
[Date "2022.08.14"]
[Round "2.22"]
[White "Gbiorczyk, Mikolaj"]
[Black "Karalchuk, Aliaksei"]
[Result "1-0"]
[ECO "A85"]
[WhiteElo "1781"]
[BlackElo "1468"]
[Annotator "NA RC"]
[PlyCount "88"]
[EventDate "2022.08.13"]
[EventCountry "POL"]
[SourceTitle "playchess.com"]
[Source "ChessBase"]
[SourceQuality "1"]
[TimeControl "40/5400+30:1800+30"]

1. d4 {[%emt 0:00:03]} f5 {[%emt 0:12:16]} 2. c4 {[%emt 0:00:17]} Nf6 {[%emt 0:01:21]} 3. Nc3 {[%emt 0:00:15]} e6 {[%emt 0:01:00]} 4. a3 {[%emt 0:00:27]} b6 {[%emt 0:01:52]} 5. Nf3 {[%emt 0:02:17]} Bb7 {[%emt 0:01:01]} 6. g3 {[%emt 0:01:14]} Nc6 {[%emt 0:05:06]} 7. Bg2 {[%emt 0:01:57]} Be7 {[%emt 0:01:41]} 8. O-O {[%emt 0:01:25]} O-O {[%emt 0:01:26]} 9. b4 {[%emt 0:08:55]} Ne4 {[%emt 0:04:19]} 10. Bb2 {[%emt 0:05:52]} Bf6 {[%emt 0:09:33]} 11. Nxe4 {[%emt 0:09:02]} fxe4 {[%emt 0:01:37]} 12. Ne1 {[%emt 0:00:44]} d5 {[%emt 0:05:26]} 13. e3 {[%emt 0:02:25]} Ne7 {[%emt 0:04:36]} 14. Qb3 {[%emt 0:06:34]} a5 {[%emt 0:05:58]} 15. b5 {[%emt 0:08:14]} a4 {[%emt 0:13:59]} 16. Qc3 {[%emt 0:04:53]} dxc4 {[%emt 0:01:13]} 17. Qxc4 {[%emt 0:01:48]} Bd5 {[%emt 0:00:07]} 18. Qc2 {[%emt 0:01:31]} Ra5 {[%emt 0:04:41]} 19. Rb1 {[%emt 0:21:45]} Rxb5 {[%emt 0:00:44]} 20. Qxa4 {[%emt 0:04:09]} Rb3 {[%emt 0:02:54]} 21. Nc2 {[%emt 0:03:20]} b5 {[%emt 0:09:30]} 22. Qa6 {[%emt 0:03:47]} Qa8 23. Nb4 {[%emt 0:01:34]} Bc4 {[%emt 0:06:43]} 24. Qxa8 {[%emt 0:01:28]} Rxa8 {[%emt 0:00:07]} 25. Bxe4 {[%emt 0:00:14]} Bxf1 {[%emt 0:04:28]} 26. Bxa8 {[%emt 0:00:05]} c5 {[%emt 0:00:06]} 27. Kxf1 {[%emt 0:04:44]} cxb4 {[%emt 0:00:25]} 28. axb4 {[%emt 0:00:21]} Nd5 {[%emt 0:01:24]} 29. Bxd5 {[%emt 0:01:07]} exd5 {[%emt 0:00:06]} 30. Ke2 {[%emt 0:00:36]} Rxb4 {[%emt 0:00:32]} 31. Kd3 {[%emt 0:00:45]} Ra4 {[%emt 0:01:16]} 32. Bc3 {[%emt 0:00:41]} b4 {[%emt 0:00:31]} 33. Rxb4 {[%emt 0:00:51]} Ra2 {[%emt 0:00:05]} 34. Rb2 {[%emt 0:00:27]} Ra3 {[%emt 0:00:19]} 35. Rb5 {[%emt 0:00:14]} Ra2 {[%emt 0:00:07]} 36. Bd2 {[%emt 0:00:19]} Ra3+ {[%emt 0:00:47]} 37. Ke2 {[%emt 0:00:08]} Kf7 {[%emt 0:00:09]} 38. Rxd5 {[%emt 0:00:09]} Ke6 {[%emt 0:00:19]} 39. Ra5 {[%emt 0:00:23]} Rb3 {[%emt 0:00:13]} 40. g4 {[%emt 0:01:13]} h6 {[%emt 0:00:29]} 41. Kf3 {[%emt 0:31:07]} Bxd4 {[%emt 0:31:09]} 42. Ke4 {[%emt 0:01:06]} Bf6 {[%emt 0:00:19]} 43. Kf3 Bd4 44. Ke4 Bf6 1-0

[Event "58th Akiba Rubinstein D 2022"]
[Site "Polanica-Zdroj"]
[Date "2022.08.14"]
[Round "2.23"]
[White "Para, Tomasz"]
[Black "Pietryk, Joanna"]
[Result "0-1"]
[ECO "A45"]
[WhiteElo "1796"]
[BlackElo "1417"]
[Annotator "NA RC"]
[PlyCount "90"]
[EventDate "2022.08.13"]
[EventCountry "POL"]
[SourceTitle "playchess.com"]
[Source "ChessBase"]
[SourceQuality "1"]
[TimeControl "40/5400+30:1800+30"]

1. d4 {[%emt 0:00:02]} Nf6 {[%emt 0:00:09]} 2. Bf4 {[%emt 0:00:02]} d5 {[%emt 0:00:21]} 3. e3 {[%emt 0:00:07]} c6 {[%emt 0:00:19]} 4. Bd3 {[%emt 0:05:53]} Qb6 {[%emt 0:02:06]} 5. b3 {[%emt 0:07:05]} Bg4 {[%emt 0:03:00]} 6. f3 {[%emt 0:08:49]} Bh5 {[%emt 0:00:46]} 7. g4 {[%emt 0:01:28]} Bg6 {[%emt 0:00:09]} 8. h4 {[%emt 0:00:40]} e6 {[%emt 0:04:25]} 9. h5 {[%emt 0:14:11]} Bxd3 {[%emt 0:00:12]} 10. Qxd3 {[%emt 0:00:02]} h6 {[%emt 0:01:32]} 11. Nd2 {[%emt 0:06:58]} Nbd7 {[%emt 0:04:32]} 12. Kf1 {[%emt 0:12:22]} c5 {[%emt 0:04:03]} 13. c3 {[%emt 0:02:12]} cxd4 {[%emt 0:09:29]} 14. exd4 {[%emt 0:03:36]} Bd6 {[%emt 0:01:33]} 15. Bxd6 {[%emt 0:06:19]} Qxd6 {[%emt 0:00:12]} 16. c4 {[%emt 0:02:05]} O-O {[%emt 0:03:19]} 17. Nh3 {[%emt 0:04:22]} e5 {[%emt 0:07:08]} 18. c5 {[%emt 0:05:50]} Qc7 {[%emt 0:01:51]} 19. Rc1 {[%emt 0:02:30]} Rfe8 {[%emt 0:16:29]} 20. dxe5 {[%emt 0:01:04]} Qxe5 {[%emt 0:01:40]} 21. f4 {[%emt 0:01:15]} Qe3 {[%emt 0:02:07]} 22. Qxe3 {[%emt 0:02:16]} Rxe3 {[%emt 0:00:06]} 23. Nf2 {[%emt 0:00:10]} Rae8 {[%emt 0:01:54]} 24. g5 {[%emt 0:00:41]} hxg5 {[%emt 0:01:44]} 25. fxg5 {[%emt 0:00:02]} Ne4 {[%emt 0:00:15]} 26. Ndxe4 {[%emt 0:00:26]} dxe4 {[%emt 0:00:09]} 27. c6 {[%emt 0:02:33]} bxc6 {[%emt 0:02:19]} 28. Rxc6 {[%emt 0:00:00]} Ne5 {[%emt 0:00:17]} 29. Rc7 {[%emt 0:00:54]} Nd3 {[%emt 0:04:50]} 30. Rc2 {[%emt 0:07:25]} Re1+ {[%emt 0:05:05]} 31. Kg2 {[%emt 0:00:03]} Nf4+ {[%emt 0:00:25]} 32. Kg3 {[%emt 0:01:08]} Rxh1 {[%emt 0:00:18]} 33. Nxh1 {[%emt 0:00:00]} e3 {[%emt 0:00:58]} 34. Kxf4 {[%emt 0:02:35]} e2 {[%emt 0:00:07]} 35. Rc1 {[%emt 0:00:23]} e1=Q {[%emt 0:00:24]} 36. Rxe1 {[%emt 0:00:01]} Rxe1 {[%emt 0:00:08]} 37. Ng3 {[%emt 0:00:29]} Ra1 {[%emt 0:00:29]} 38. Ne4 {[%emt 0:01:00]} Rxa2 {[%emt 0:00:37]} 39. Nc5 {[%emt 0:00:09]} Rc2 {[%emt 0:01:26]} 40. Ne4 {[%emt 0:00:08]} Rb2 {[%emt 0:04:29]} 41. Nc5 {[%emt 0:30:07]} f6 {[%emt 0:30:21]} 42. gxf6 {[%emt 0:00:19]} Rf2+ {[%emt 0:00:17]} 43. Kg5 {[%emt 0:00:35]} Rxf6 {[%emt 0:00:20]} 44. Nd7 {[%emt 0:00:14]} Rd6 {[%emt 0:00:31]} 45. Ne5 {[%emt 0:00:34]} Rb6 {[%emt 0:00:53]} 0-1

[Event "58th Akiba Rubinstein D 2022"]
[Site "Polanica-Zdroj"]
[Date "2022.08.14"]
[Round "2.24"]
[White "Pieczulis, Hubert"]
[Black "Liskiewicz, Jakub"]
[Result "0-1"]
[ECO "B07"]
[WhiteElo "1472"]
[BlackElo "1910"]
[Annotator "TA"]
[PlyCount "88"]
[EventDate "2022.08.13"]
[EventCountry "POL"]
[SourceTitle "playchess.com"]
[Source "ChessBase"]
[SourceQuality "1"]
[TimeControl "40/5400+30:1800+30"]

{[%evp 11,87,39,47,44,61,0,35,40,48,36,33,24,51,-3,20,26,32,15,35,-43,-8,0,0,0,0,0,69,43,82,73,68,66,64,62,210,214,212,67,68,67,73,63,70,64,70,0,51,33,86,0,48,41,25,0,48,0,41,-352,-338,-335,-316,-321,-313,-305,-244,-275,-254,-1006,-757,-1055,-995,-29997,-29997,-29997,-29996,-29998,-29999,-29999]} 1. e4 {[%emt 0:00:07]} Nf6 {[%emt 0:00:13]} 2. Nc3 {[%emt 0:01:11]} d6 {[%emt 0:00:49]} 3. d4 {[%emt 0:00:59]} g6 {[%emt 0:00:18]} 4. f3 {[%emt 0:00:40]} Bg7 {[%emt 0:00:13]} 5. Be3 {[%emt 0:00:08]} c6 {[%emt 0:00:07]} 6. Qd2 {[%emt 0:00:08]} h5 {[%emt 0:00:11]} 7. Nge2 {[%emt 0:01:32] B07: Pirc Defence: Miscellaneous Systems.} Nbd7 {[%emt 0:00:15]} 8. O-O-O {[%emt 0:01:44]} (8. a4 $14) 8... b5 {[%emt 0:01:55]} 9. e5 {[%emt 0:03:29] White is slightly better.} b4 $1 {[%emt 0:00:13]} 10. exf6 {[%emt 0:01:26]} bxc3 {[%emt 0:00:08]} 11. Nxc3 {[%emt 0:00:38]} Nxf6 {[%emt 0:00:12] [#]} 12. h3 $146 {[%emt 0:02:34]} ({White should play} 12. Bc4 $1 $14) ({Predecessor:} 12. Bc4 d5 13. Bb3 Qa5 14. Rhe1 e6 15. Kb1 Kf8 16. Bg5 Qc7 17. Na4 a5 18. Bf4 {1-0 (51) Banikas,H (2526)-Moutousis,K (2448) Athens 2001}) 12... Rb8 {[%emt 0:01:31]} 13. Bc4 {[%emt 0:03:19]} h4 {[%emt 0:02:45]} 14. Rhe1 {[%emt 0:06:10]} Kf8 {[%emt 0:16:24]} 15. Ne4 {[%emt 0:10:29]} (15. Bg5 $14) 15... a5 {[%emt 0:11:10]} 16. Nxf6 {[%emt 0:01:04]} Bxf6 {[%emt 0:00:13]} 17. Bh6+ {[%emt 0:01:57]} Kg8 {[%emt 0:00:45]} 18. Bg5 {[%emt 0:00:14]} Qb6 {[%emt 0:07:10]} (18... d5 $11 19. Bxf6 exf6) 19. b3 $14 {[%emt 0:01:04] [#] Bxf6 is the strong threat.} Kg7 {[%emt 0:02:33]} 20. Rxe7 {[%emt 0:04:20]} Bxe7 {[%emt 0:04:53]} 21. Bxe7 {[%emt 0:00:49]} d5 $1 {[%emt 0:10:39]} 22. Qg5 {[%emt 0:03:26]} Rh5 {[%emt 0:02:48]} (22... dxc4 $2 23. Bf6+ Kf8 24. Bxh8 $18) ({Better is} 22... Kg8 $1 $14 23. Bc5 Qc7) 23. Qf6+ $18 {[%emt 0:01:12]} Kg8 {[%emt 0:00:22]} 24. Bd3 {[%emt 0:00:21]} (24. Bc5 $18 Qc7 25. Bd6) 24... Bf5 $14 {[%emt 0:03:23][%cal Oa5a4]} 25. Bxf5 {[%emt 0:03:40]} Rxf5 {[%emt 0:00:09]} 26. Qxh4 {[%emt 0:00:14]} Rh5 {[%emt 0:07:30]} 27. Qf4 {[%emt 0:02:01]} Re8 {[%emt 0:03:33]} 28. Bd6 {[%emt 0:01:17]} (28. Qd6 $14) 28... Re2 {[%emt 0:01:11]} (28... a4 $11) 29. Rd2 $1 {[%emt 0:01:40]} Rf5 {[%emt 0:02:30]} (29... Re1+ $14 30. Kb2 Re6) 30. Qh4 {[%emt 0:01:19]} (30. Qh6 $16 {Intending Bf8 and mate.} Re8 31. a4 (31. Be5 Rexe5 32. dxe5 Qg1+ 33. Kb2 Qe1 $14)) 30... Re6 {[%emt 0:01:55]} (30... Rh5 $1 $11 {feels stronger.} 31. Qf4 Re6) 31. Bc5 {[%emt 0:07:48]} Qb8 {[%emt 0:00:17]} 32. Qf2 {[%emt 0:01:15]} Qe8 {[%emt 0:01:05]} (32... a4 $11) 33. Kd1 {[%emt 0:02:28]} (33. a4 $1 $14 {is more appropriate.}) 33... Rff6 {[%emt 0:01:20][%cal Oa5a4]} (33... a4 $5) 34. c4 $2 {[%emt 0:01:04][%mdl 8192]} (34. a4 $14 {stays ahead.}) 34... Re3 {[%emt 0:01:13] aiming for ...Rfe6.} 35. Re2 {[%emt 0:01:30] [#]} Rxe2 {[%emt 0:00:33]} 36. Qxe2 $19 {[%emt 0:00:06][%mdl 4096] Endgame KQR-KQB} Re6 {[%emt 0:00:05]} 37. Qf2 {[%emt 0:00:13]} Qb8 {[%emt 0:01:04] Strongly threatening ...dxc4.} 38. cxd5 {[%emt 0:00:46]} cxd5 {[%emt 0:00:07]} 39. Qh4 $2 {[%emt 0:01:44]} (39. Qf1) 39... Qb5 {[%emt 0:02:26] ( -> ...Qf1+)} 40. Qd8+ {[%emt 0:01:24]} Re8 {[%emt 0:00:26]} 41. Qxd5 {[%emt 0:30:11]} Qf1+ {[%emt 0:30:12] Black mates.} 42. Kd2 {[%emt 0:01:06]} Re2+ {[%emt 0:00:07]} 43. Kc3 {[%emt 0:00:07]} Qc1+ {[%emt 0:00:09]} 44. Kd3 {[%emt 0:00:08]} Qc2# {[%emt 0:00:06] Quite a comeback for Black.  Weighted Error Value: White=0.79/Black=0.31} 0-1

[Event "58th Akiba Rubinstein D 2022"]
[Site "Polanica-Zdroj"]
[Date "2022.08.14"]
[Round "2.25"]
[White "Markiewicz, Czeslaw"]
[Black "Klama, Andrzej"]
[Result "1-0"]
[ECO "C00"]
[WhiteElo "1750"]
[BlackElo "1441"]
[Annotator "NA RC"]
[PlyCount "117"]
[EventDate "2022.08.13"]
[EventCountry "POL"]
[SourceTitle "playchess.com"]
[Source "ChessBase"]
[SourceQuality "1"]
[TimeControl "40/5400+30:1800+30"]

1. e4 {[%emt 0:00:04]} e6 {[%emt 0:00:13]} 2. d4 {[%emt 0:00:09]} b6 {[%emt 0:00:10]} 3. Nf3 {[%emt 0:01:00]} Bb7 {[%emt 0:00:17]} 4. Bd3 {[%emt 0:00:19]} Nf6 {[%emt 0:00:34]} 5. Qe2 {[%emt 0:00:46]} d6 {[%emt 0:00:30]} 6. O-O {[%emt 0:00:33]} Nbd7 {[%emt 0:00:18]} 7. Bg5 {[%emt 0:02:27]} e5 {[%emt 0:02:00]} 8. d5 {[%emt 0:02:00]} Be7 {[%emt 0:00:36]} 9. c4 {[%emt 0:01:16]} h6 {[%emt 0:00:39]} 10. Bd2 {[%emt 0:00:54]} c5 {[%emt 0:02:27]} 11. Nc3 {[%emt 0:00:49]} g5 {[%emt 0:01:47]} 12. Ne1 {[%emt 0:04:48]} Nf8 {[%emt 0:01:13]} 13. g3 {[%emt 0:02:22]} Ng6 {[%emt 0:00:36]} 14. Ng2 {[%emt 0:00:59]} Bc8 {[%emt 0:01:39]} 15. a3 {[%emt 0:01:29]} Bd7 {[%emt 0:00:58]} 16. b4 {[%emt 0:01:15]} Qc8 {[%emt 0:01:10]} 17. bxc5 {[%emt 0:00:26]} bxc5 {[%emt 0:00:34]} 18. Rfb1 {[%emt 0:01:49]} Kf8 {[%emt 0:04:51]} 19. Rb2 {[%emt 0:00:47]} Kg7 {[%emt 0:00:14]} 20. Ne3 {[%emt 0:07:05]} Bd8 {[%emt 0:08:56]} 21. Nb5 {[%emt 0:02:24]} Bc7 {[%emt 0:00:28]} 22. Nf5+ {[%emt 0:02:13]} Bxf5 {[%emt 0:00:20]} 23. exf5 {[%emt 0:00:15]} Ne7 {[%emt 0:00:26]} 24. Nxc7 {[%emt 0:08:20]} Qxc7 {[%emt 0:00:21]} 25. Rab1 {[%emt 0:00:34]} Rhb8 {[%emt 0:00:18]} 26. f4 {[%emt 0:02:57]} Rxb2 {[%emt 0:03:02]} 27. Rxb2 {[%emt 0:00:05]} Nh7 {[%emt 0:04:46]} 28. f6+ {[%emt 0:03:25]} Nxf6 {[%emt 0:00:08]} 29. fxe5 {[%emt 0:00:16]} dxe5 {[%emt 0:01:31]} 30. Bc3 {[%emt 0:00:35]} Nd7 {[%emt 0:01:16]} 31. Qf3 {[%emt 0:02:05]} Rf8 {[%emt 0:01:40]} 32. h4 {[%emt 0:01:03]} f6 {[%emt 0:01:57]} 33. Rh2 {[%emt 0:01:23]} Rh8 {[%emt 0:01:13]} 34. Qh5 {[%emt 0:07:05]} Qd6 {[%emt 0:01:38]} 35. hxg5 {[%emt 0:02:32]} fxg5 {[%emt 0:00:09]} 36. Re2 {[%emt 0:06:52]} Rf8 {[%emt 0:02:43]} 37. Qg4 {[%emt 0:01:24]} Rf7 {[%emt 0:03:40]} 38. Qe6 {[%emt 0:04:01]} Nc8 {[%emt 0:05:28]} 39. Rxe5 {[%emt 0:04:06]} Kg8 {[%emt 0:06:11]} 40. Qxd6 {[%emt 0:01:58]} Nxd6 {[%emt 0:00:44]} 41. Re6 {[%emt 0:36:46]} Nf5 {[%emt 0:31:15]} 42. Kg2 {[%emt 0:00:58]} h5 43. Rg6+ {[%emt 0:03:14]} Kf8 {[%emt 0:03:27]} 44. Rxg5 {[%emt 0:00:31]} Ne3+ {[%emt 0:00:16]} 45. Kh3 {[%emt 0:00:52]} Rf3 {[%emt 0:01:15]} 46. Rxh5 {[%emt 0:01:37]} Nxc4 {[%emt 0:01:18]} 47. Rf5+ {[%emt 0:00:45]} Rxf5 {[%emt 0:00:52]} 48. Bxf5 {[%emt 0:00:11]} Ndb6 {[%emt 0:01:09]} 49. Be4 {[%emt 0:00:46]} Nd6 {[%emt 0:00:47]} 50. Bf3 {[%emt 0:01:12]} Ndc4 {[%emt 0:01:04]} 51. g4 {[%emt 0:02:36]} Nxa3 {[%emt 0:00:33]} 52. g5 {[%emt 0:00:15]} Nb5 {[%emt 0:00:15]} 53. Ba1 {[%emt 0:01:47]} c4 {[%emt 0:00:35]} 54. g6 {[%emt 0:01:08]} c3 {[%emt 0:00:21]} 55. d6 {[%emt 0:01:18]} c2 {[%emt 0:05:28]} 56. g7+ {[%emt 0:00:23]} Kg8 {[%emt 0:00:04]} 57. d7 {[%emt 0:01:40]} c1=Q {[%emt 0:05:56]} 58. d8=Q+ {[%emt 0:00:15]} Kf7 {[%emt 0:00:16]} 59. g8=Q# {[%emt 0:00:10]} 1-0

[Event "58th Akiba Rubinstein D 2022"]
[Site "Polanica-Zdroj"]
[Date "2022.08.14"]
[Round "2.26"]
[White "Michalik, Marek"]
[Black "Paziewski, Marcin"]
[Result "1-0"]
[ECO "B01"]
[WhiteElo "1742"]
[BlackElo "1413"]
[Annotator "NA RC"]
[PlyCount "99"]
[EventDate "2022.08.13"]
[EventCountry "POL"]
[SourceTitle "playchess.com"]
[Source "ChessBase"]
[SourceQuality "1"]
[TimeControl "40/5400+30:1800+30"]

1. e4 {[%emt 0:00:13]} d5 {[%emt 0:00:19]} 2. exd5 {[%emt 0:00:36]} Qxd5 {[%emt 0:00:10]} 3. Nc3 {[%emt 0:00:12]} Qd8 {[%emt 0:00:11]} 4. d4 {[%emt 0:00:33]} Nf6 {[%emt 0:00:46]} 5. Nf3 {[%emt 0:00:22]} Bg4 {[%emt 0:01:47]} 6. Bc4 {[%emt 0:00:23]} e6 {[%emt 0:01:32]} 7. Bf4 {[%emt 0:03:21]} c6 {[%emt 0:03:23]} 8. Be2 {[%emt 0:02:56]} Bd6 {[%emt 0:05:21]} 9. Qd2 {[%emt 0:02:45]} Bb4 {[%emt 0:06:03]} 10. Bg5 {[%emt 0:07:54]} Nbd7 {[%emt 0:11:44]} 11. Rd1 {[%emt 0:03:19]} Qa5 {[%emt 0:03:49]} 12. a3 {[%emt 0:02:15]} Bxc3 {[%emt 0:08:26]} 13. Qxc3 {[%emt 0:00:55]} Qxc3+ {[%emt 0:00:44]} 14. bxc3 {[%emt 0:00:05]} Ne4 {[%emt 0:05:54]} 15. Bd2 {[%emt 0:00:29]} O-O {[%emt 0:08:11]} 16. h3 {[%emt 0:04:22]} Bxf3 {[%emt 0:03:07]} 17. Bxf3 Ndf6 {[%emt 0:03:31]} 18. Ke2 {[%emt 0:01:35]} Rfe8 {[%emt 0:01:05]} 19. Ke3 {[%emt 0:02:36]} e5 {[%emt 0:02:33]} 20. Bxe4 {[%emt 0:02:42]} exd4+ {[%emt 0:00:20]} 21. cxd4 {[%emt 0:00:17]} Rxe4+ {[%emt 0:04:49]} 22. Kd3 {[%emt 0:00:32]} Rd8 {[%emt 0:02:36]} 23. c3 {[%emt 0:00:17]} c5 {[%emt 0:02:10]} 24. Bg5 {[%emt 0:00:39]} Re6 {[%emt 0:03:14]} 25. Rhe1 {[%emt 0:01:06]} cxd4 {[%emt 0:03:59]} 26. cxd4 {[%emt 0:02:34]} Rde8 {[%emt 0:01:39]} 27. Rxe6 {[%emt 0:00:52]} Rxe6 {[%emt 0:02:22]} 28. Rc1 {[%emt 0:00:10]} h6 {[%emt 0:03:05]} 29. Rc8+ {[%emt 0:02:20]} Ne8 {[%emt 0:00:55]} 30. Bd2 {[%emt 0:00:49]} Kh7 {[%emt 0:02:52]} 31. d5 {[%emt 0:00:26]} Re5 {[%emt 0:05:32]} 32. Kd4 {[%emt 0:04:42]} Re2 {[%emt 0:00:00]} 33. Be3 {[%emt 0:00:22]} Nd6 {[%emt 0:01:28]} 34. Rd8 {[%emt 0:01:25]} Nf5+ {[%emt 0:01:31]} 35. Kd3 {[%emt 0:07:15]} Ra2 {[%emt 0:00:13]} 36. Ke4 {[%emt 0:00:32]} Nxe3 {[%emt 0:00:23]} 37. fxe3 {[%emt 0:00:16]} Rxa3 {[%emt 0:00:20]} 38. Rd7 {[%emt 0:00:34]} b5 {[%emt 0:01:02]} 39. Rxf7 {[%emt 0:00:32]} Kg6 {[%emt 0:00:23]} 40. Rb7 {[%emt 0:02:33]} a6 {[%emt 0:00:38]} 41. d6 {[%emt 0:30:19]} Kf6 {[%emt 0:30:36]} 42. Re7 {[%emt 0:03:25]} b4 {[%emt 0:00:43]} 43. Kd4 {[%emt 0:01:36]} Ra5 {[%emt 0:01:04]} 44. e4 {[%emt 0:00:54]} Rb5 {[%emt 0:00:43]} 45. e5+ {[%emt 0:00:35]} Kg6 {[%emt 0:00:43]} 46. d7 {[%emt 0:00:11]} b3 {[%emt 0:00:48]} 47. d8=Q {[%emt 0:00:20]} b2 {[%emt 0:00:04]} 48. Qe8+ {[%emt 0:01:03]} Kg5 {[%emt 0:00:35]} 49. Rxg7+ {[%emt 0:00:15]} Kh4 {[%emt 0:00:17]} 50. Rg4# {[%emt 0:00:12]} 1-0